bitfinex-derivatives/quotes_ETHF0:USTF0_20241027
["timestamp","ask_amount","ask_price","bid_price","bid_amount"]
[1730048678768,0.83,2501.6,2501.4,4.20724031]
[1730048678967,0.83,2501.6,2501.5,1.27578]
[1730048679262,0.83,2501.6,2501.5,1.70238]
[1730048679867,1.98320127,2501.6,2501.5,1.70238]
[1730048681363,2.38336127,2501.6,2501.5,1.70238]
[1730048681959,1.98320127,2501.6,2501.5,1.70238]
[1730048682160,2.38336127,2501.6,2501.5,1.70238]
[1730048682659,2.38336127,2501.6,2501.5,4.91018]
[1730048683163,2.38336127,2501.6,2501.5,1.70238]
[1730048683361,2.38336127,2501.6,2501.5,4.91018]
[1730048685866,2.38336127,2501.6,2501.5,1.70238]
[1730048686067,1.98320127,2501.6,2501.5,4.91018]
[1730048686464,2.38336127,2501.6,2501.5,4.91018]
[1730048686963,1.98320127,2501.6,2501.5,4.91018]
[1730048687164,0.4074,2501.9,2501.5,4.91018]
[1730048687470,2.38334127,2501.8,2501.7,0.40013]
[1730048688670,3.53654254,2501.8,2501.7,0.40013]
[1730048689269,0.40016,2501.7,2501.6,0.40015]
[1730048689468,1.55336127,2501.7,2501.5,5.55918445]
[1730048689670,0.40016,2501.7,2501.6,0.40016]
[1730048690867,0.40016,2501.7,2501.6,3.60796]
[1730048691962,1.55336127,2501.7,2501.6,3.60796]
[1730048694171,1.55336127,2501.7,2501.6,0.40016]
[1730048694372,1.55336127,2501.7,2501.6,3.60796]
[1730048697779,1.55336127,2501.7,2501.6,0.40016]
[1730048698174,1.55336127,2501.7,2501.6,3.60796]
[1730048698477,0.4074,2501.9,2501.6,4.25698445]
[1730048698667,1.15320127,2501.7,2501.6,4.65714445]
[1730048699382,1.15320127,2501.7,2501.6,5.61033331]
[1730048700586,1.55334127,2501.7,2501.6,7.18378024]
[1730048700877,1.55334127,2501.7,2501.6,4.65759657]
[1730048701077,2.84614127,2501.7,2501.6,4.65759657]
[1730048703782,2.84614127,2501.7,2501.6,3.60796]
[1730048705084,0.40018,2501.5,2501.4,0.99944031]
[1730048705441,1.55338127,2501.5,2501.4,0.99944031]
[1730048705885,5.55098127,2501.5,2501.4,0.99944031]
[1730048708996,1.55338127,2501.5,2501.4,1.39963031]
[1730048709185,0.83,2501.5,2501.4,1.99991031]
[1730048709378,1.98320127,2501.5,2501.4,5.39723031]
[1730048709691,1.15320127,2501.5,2501.4,6.24223031]
[1730048710388,1.15320127,2501.5,2501.4,2.24463031]
[1730048711791,1.15320127,2501.5,2501.4,5.29681226]
[1730048712485,1.15320127,2501.5,2501.4,4.24715428]
[1730048712687,1.15320127,2501.5,2501.4,2.24463031]
[1730048712885,1.15320127,2501.5,2501.4,4.24715505]
[1730048713286,1.15320127,2501.5,2501.4,5.82164202]
[1730048714292,1.55338127,2501.5,2501.4,5.82164202]
[1730048714592,1.55338127,2501.5,2501.4,4.24715505]
[1730048715190,1.55338127,2501.5,2501.4,5.82164202]
[1730048715486,1.15320127,2501.5,2501.4,5.82164202]
[1730048715685,1.15320127,2501.5,2501.4,2.24463031]
[1730048716288,0.83,2501.6,2501.5,0.40018]
[1730048716585,1.98320127,2501.6,2501.5,3.60798]
[1730048716785,1.98320127,2501.6,2501.5,7.18526768]
[1730048717787,1.98320127,2501.6,2501.5,7.18521686]
[1730048718475,2.38336127,2501.6,2501.5,7.18521686]
[1730048718682,2.38336127,2501.6,2501.5,3.60798]
[1730048720780,2.38336127,2501.6,2501.5,0.40018]
[1730048724785,2.38336127,2501.6,2501.5,3.60798]
[1730048725390,2.38336127,2501.6,2501.5,0.40018]
[1730048725587,1.98320127,2501.6,2501.5,3.60798]
[1730048725887,2.38336127,2501.6,2501.5,3.60798]
[1730048726686,2.38336127,2501.6,2501.5,7.18526183]
[1730048728083,1.55336127,2501.6,2501.5,7.18526183]
[1730048728278,2.38336127,2501.6,2501.5,7.18526183]
[1730048730588,1.98320127,2501.6,2501.5,7.18526183]
[1730048730790,2.38336127,2501.6,2501.5,7.18526183]
[1730048731391,0.83,2501.6,2501.5,7.18526183]
[1730048731595,2.38336127,2501.6,2501.5,7.18526183]
[1730048732385,2.38336127,2501.6,2501.5,7.18523235]
[1730048733687,2.38336127,2501.6,2501.5,3.60798]
[1730048734288,2.38336127,2501.6,2501.5,0.40018]
[1730048734495,2.38336127,2501.6,2501.5,3.60798]
[1730048741904,2.38336127,2501.6,2501.5,6.65985788]
[1730048742803,2.38336127,2501.6,2501.5,3.45205788]
[1730048742999,2.38336127,2501.6,2501.5,6.65985788]
[1730048743702,2.38336127,2501.6,2501.5,3.45205788]
[1730048744699,2.38336127,2501.6,2501.5,6.65985788]
[1730048745097,2.38336127,2501.6,2501.5,3.45205788]
[1730048745304,2.38336127,2501.6,2501.5,6.65985788]
[1730048746298,1.55336127,2501.6,2501.5,6.65985788]
[1730048746600,2.38336127,2501.6,2501.5,5.6104356]
[1730048746808,2.38336127,2501.6,2501.5,6.65991529]
[1730048747008,2.38336127,2501.6,2501.5,6.65991435]
[1730048747308,2.38336127,2501.6,2501.5,5.61043466]
[1730048747515,2.38336127,2501.6,2501.5,6.65992443]
[1730048748305,2.38336127,2501.6,2501.5,6.6599442]
[1730048748810,2.38336127,2501.6,2501.5,4.65748954]
[1730048749210,2.38336127,2501.6,2501.5,1.44968954]
[1730048750113,2.38336127,2501.6,2501.5,4.65748954]
[1730048750903,1.23016,2501.6,2501.5,4.65748954]
[1730048751104,2.38336127,2501.6,2501.5,4.65748954]
[1730048753799,2.38336127,2501.6,2501.5,1.44968954]
[1730048754000,2.38336127,2501.6,2501.5,4.65748954]
[1730048755209,2.38336127,2501.6,2501.5,6.25976397]
[1730048755404,2.38336127,2501.6,2501.5,1.04950954]
[1730048755805,0.40017,2501.5,2501.4,2.04894985]
[1730048756016,2.84897127,2501.5,2501.4,4.05157273]
[1730048756214,2.84897127,2501.5,2501.4,2.04894985]
[1730048756410,2.84897127,2501.5,2501.4,4.05157077]
[1730048756715,2.84897127,2501.5,2501.4,4.05157297]
[1730048756913,2.84897127,2501.5,2501.4,0.99944031]
[1730048757315,2.84897127,2501.5,2501.4,1.43184031]
[1730048758611,2.84897127,2501.5,2501.4,1.83203031]
[1730048759012,2.84897127,2501.5,2501.4,1.43184031]
[1730048759213,2.84897127,2501.5,2501.4,1.83203031]
[1730048759909,2.84897127,2501.5,2501.4,1.43184031]
[1730048760112,6.84657127,2501.5,2501.4,0.99944031]
[1730048761323,6.84657127,2501.5,2501.4,1.39963031]
[1730048761713,6.84657127,2501.5,2501.4,0.99944031]
[1730048762818,6.84657127,2501.5,2501.4,1.39963031]
[1730048763213,2.84897127,2501.5,2501.4,1.39963031]
[1730048763828,2.84897127,2501.5,2501.4,2.44913985]
[1730048764220,2.84897127,2501.5,2501.4,4.45175074]
[1730048764522,2.07917,2501.5,2501.4,4.45175074]
[1730048764715,2.38337127,2501.5,2501.4,5.7568142]
[1730048764917,2.38337127,2501.5,2501.4,6.28213903]
[1730048766226,2.38337127,2501.5,2501.4,4.70730466]
[1730048766425,2.38337127,2501.5,2501.4,6.28213903]
[1730048766623,1.98320127,2501.5,2501.4,6.28213903]
[1730048766926,1.55337127,2501.5,2501.4,6.28213903]
[1730048767126,2.38337127,2501.5,2501.4,6.28213903]
[1730048767525,1.98320127,2501.5,2501.4,6.28213903]
[1730048767720,2.38337127,2501.5,2501.4,6.28213903]
[1730048768122,2.38337127,2501.5,2501.4,4.70730466]
[1730048768626,2.38337127,2501.5,2501.4,5.75654445]
[1730048769625,2.38337127,2501.5,2501.4,5.7565483]
[1730048770521,2.38337127,2501.5,2501.4,4.70730851]
[1730048771352,2.38337127,2501.5,2501.4,5.75642878]
[1730048771532,2.38337127,2501.5,2501.4,4.70730851]
[1730048772027,2.38337127,2501.5,2501.4,5.75636072]
[1730048772922,2.38337127,2501.5,2501.4,8.96416072]
[1730048773330,2.38337127,2501.5,2501.4,5.75636072]
[1730048773920,2.38337127,2501.5,2501.4,8.96416072]
[1730048774527,2.38337127,2501.5,2501.4,8.96414179]
[1730048778955,2.38337127,2501.5,2501.4,5.91253031]
[1730048786146,2.38337127,2501.5,2501.4,2.70473031]
[1730048786337,2.38337127,2501.5,2501.4,5.91253031]
[1730048786835,2.38337127,2501.5,2501.4,2.70473031]
[1730048787035,2.38337127,2501.5,2501.4,3.75378252]
[1730048787235,2.38337127,2501.5,2501.4,6.96158252]
[1730048790643,2.38337127,2501.5,2501.4,3.75378252]
[1730048790848,2.38337127,2501.5,2501.4,6.96158252]
[1730048791958,2.38337127,2501.5,2501.4,3.75378252]
[1730048792660,2.38337127,2501.5,2501.4,6.96158252]
[1730048792853,2.38337127,2501.5,2501.4,3.75378252]
[1730048793059,2.38337127,2501.5,2501.4,6.96158252]
[1730048794161,2.38337127,2501.5,2501.4,5.91253031]
[1730048795351,2.38337127,2501.5,2501.4,4.65394031]
[1730048795561,2.38337127,2501.5,2501.4,4.20724031]
[1730048799059,2.38337127,2501.5,2501.4,4.60743031]
[1730048799464,2.38337127,2501.5,2501.4,4.20724031]
[1730048799864,6.38097127,2501.5,2501.4,4.20724031]
[1730048802458,4.39777,2501.5,2501.4,4.20724031]
[1730048802661,0.40015,2501.8,2501.7,0.40013]
[1730048802864,0.40016,2501.7,2501.6,0.40015]
[1730048803159,1.55336127,2501.7,2501.6,0.40015]
[1730048803578,2.38236127,2501.7,2501.6,0.40015]
[1730048815686,1.98220127,2501.7,2501.6,0.40015]
[1730048815971,2.38234127,2501.7,2501.6,0.40015]
[1730048824681,0.40016,2501.6,2501.5,4.90266]
[1730048824873,1.55336127,2501.6,2501.5,4.90266]
[1730048829691,1.55336127,2501.6,2501.5,1.69486]
[1730048830183,1.55336127,2501.6,2501.5,4.90266]
[1730048831880,1.55336127,2501.6,2501.5,5.95171221]
[1730048834477,1.55336127,2501.6,2501.5,4.90266]
[1730048834685,1.55336127,2501.6,2501.5,5.95171221]
[1730048834982,1.55336127,2501.6,2501.5,4.90266]
[1730048835579,1.55336127,2501.6,2501.5,3.2078]
[1730048835580,5.55096127,2501.6,2501.5,3.2078]
[1730048835775,0.40018,2501.5,2501.4,0.99944031]
[1730048835985,5.98978127,2501.5,2501.4,0.99944031]
[1730048851877,5.98978127,2501.5,2501.1,3.2078]
[1730048851878,0.40022,2501.2,2501.1,3.2078]
[1730048852085,3.53562254,2501.2,2501.1,3.2078]
[1730048852285,7.53402254,2501.2,2501.1,3.2078]
[1730048852981,6.38082127,2501.2,2501.1,3.2078]
[1730048853178,7.53402254,2501.2,2501.1,3.2078]
[1730048853488,2.38242127,2501.2,2501.1,3.2078]
[1730048855784,1.55342127,2501.2,2501.1,3.2078]
[1730048856089,2.38242127,2501.2,2501.1,3.2078]
[1730048856990,3.53562254,2501.2,2501.1,3.2078]
[1730048857185,2.38242127,2501.2,2501.1,3.2078]
[1730048858889,3.53562254,2501.2,2501.1,3.2078]
[1730048859594,2.38242127,2501.2,2501.1,3.2078]
[1730048859891,3.53562254,2501.2,2501.1,3.2078]
[1730048865411,0.40024,2501.1,2501.0,0.4363]
[1730048865605,2.70664254,2501.1,2501.0,0.4363]
[1730048865814,3.53574254,2501.1,2501.0,0.4363]
[1730048869497,3.53564254,2501.1,2501.0,0.4363]
[1730048870889,2.38244127,2501.1,2501.0,0.4363]
[1730048871493,2.38244127,2501.1,2501.0,0.83656]
[1730048871902,3.53564254,2501.1,2501.0,0.83656]
[1730048872098,3.53564254,2501.1,2501.0,0.4363]
[1730048872491,2.38244127,2501.1,2501.0,0.4363]
[1730048872692,3.53564254,2501.1,2501.0,0.4363]
[1730048873298,2.38244127,2501.1,2501.0,0.4363]
[1730048874589,3.53564254,2501.1,2501.0,0.4363]
[1730048875893,2.38244127,2501.1,2501.0,0.4363]
[1730048876289,3.53564254,2501.1,2501.0,0.4363]
[1730048879104,2.38244127,2501.1,2501.0,0.4363]
[1730048879306,3.53564254,2501.1,2501.0,0.4363]
[1730048882000,3.53564254,2501.1,2501.0,0.83656]
[1730048882001,1.22924,2501.1,2501.0,0.83656]
[1730048882196,2.38244127,2501.1,2501.0,0.83656]
[1730048882698,3.6551,2501.4,2501.0,0.4363]
[1730048882894,0.829,2501.3,2501.0,0.4363]
[1730048883125,1.15320127,2501.1,2501.0,0.4363]
[1730048883310,1.55344127,2501.1,2501.0,0.4363]
[1730048883605,1.55344127,2501.1,2501.0,0.83656]
[1730048884505,1.55344127,2501.1,2501.0,1.88561221]
[1730048886000,1.22923,2501.2,2501.1,0.40024]
[1730048886202,2.38243127,2501.2,2501.1,0.40024]
[1730048886406,1.98220127,2501.2,2501.1,0.40024]
[1730048886907,2.38242127,2501.2,2501.1,0.40024]
[1730048887115,1.55342127,2501.2,2501.1,0.40024]
[1730048887412,1.15320127,2501.2,2501.1,5.44769221]
[1730048887614,1.55342127,2501.2,2501.1,1.44929221]
[1730048887913,1.55342127,2501.2,2501.1,5.44769221]
[1730048888106,1.15320127,2501.2,2501.1,5.44769221]
[1730048889510,1.55342127,2501.2,2501.1,5.44769221]
[1730048889707,1.55342127,2501.2,2501.1,4.39864]
[1730048889901,1.15320127,2501.2,2501.1,4.39864]
[1730048890510,1.55342127,2501.2,2501.1,4.39864]
[1730048891311,1.15320127,2501.2,2501.1,4.39864]
[1730048891712,1.55342127,2501.2,2501.1,4.39864]
[1730048892312,1.55342127,2501.2,2501.1,0.40024]
[1730048897313,1.55342127,2501.2,2501.1,3.60804]
[1730048900119,0.65320127,2501.2,2501.1,3.60804]
[1730048900428,0.55342127,2501.2,2501.1,7.60644]
[1730048900617,0.15320127,2501.2,2501.1,7.60644]
[1730048900818,0.829,2501.3,2501.2,0.40022]
[1730048900819,0.88242127,2501.3,2501.2,0.40022]
[1730048901017,1.88242254,2501.3,2501.2,0.84882]
[1730048903317,1.88242254,2501.3,2501.2,0.4486]
[1730048904117,1.88242254,2501.3,2501.2,0.84882]
[1730048905210,1.48220254,2501.3,2501.2,0.84882]
[1730048905521,1.88241254,2501.3,2501.2,0.84882]
[1730048912420,1.88241254,2501.3,2501.2,0.4486]
[1730048912621,1.88241254,2501.3,2501.2,0.84882]
[1730048912823,0.40022,2501.2,2501.1,3.2078]
[1730048913017,2.86592127,2501.2,2501.1,3.2078]
[1730048915640,2.46570127,2501.2,2501.0,0.40025]
[1730048915931,1.55344127,2501.1,2501.0,0.40025]
[1730048917038,0.40027,2501.0,2500.9,0.40026]
[1730048917327,1.55347127,2501.0,2500.9,0.40026]
[1730048919938,1.55347127,2501.0,2500.9,3.60806]
[1730048921736,1.55347127,2501.0,2500.9,5.6109362]
[1730048922535,1.55347127,2501.0,2500.9,6.61057632]
[1730048922733,1.55347127,2501.0,2500.9,6.61056976]
[1730048923734,1.15320127,2501.0,2500.9,13.86040234]
[1730048924236,1.15320127,2501.0,2500.9,16.71280295]
[1730048924930,1.15320127,2501.0,2500.9,17.86601422]
[1730048925657,1.15320127,2501.0,2500.9,15.76778291]
[1730048926532,1.15320127,2501.0,2500.9,12.55998291]
[1730048926724,1.15320127,2501.0,2500.9,15.76778291]
[1730048926929,1.15320127,2501.0,2500.9,12.55998291]
[1730048927235,0.65400127,2501.0,2500.9,15.76778291]
[1730048927534,0.65400127,2501.0,2500.9,9.75931139]
[1730048927729,0.65400127,2501.0,2500.9,15.76756058]
[1730048927931,0.15400127,2501.0,2500.9,15.76756058]
[1730048928131,0.15400127,2501.0,2500.9,18.39034972]
[1730048928736,0.15400127,2501.0,2500.9,15.76756058]
[1730048929128,0.15400127,2501.0,2500.9,18.39034972]
[1730048929328,0.15400127,2501.0,2500.9,15.76756058]
[1730048929538,1.15320127,2501.0,2500.9,14.61435931]
[1730048932846,1.15320127,2501.0,2500.9,17.23714845]
[1730048933139,1.15320127,2501.0,2500.9,14.61435931]
[1730048933741,1.15320127,2501.0,2500.9,17.23714845]
[1730048934043,1.15320127,2501.0,2500.9,14.61435931]
[1730048935142,1.15320127,2501.0,2500.9,10.61595931]
[1730048936537,1.15320127,2501.0,2500.9,13.23874845]
[1730048936859,1.15320127,2501.0,2500.9,5.65832125]
[1730048938244,1.55346127,2501.0,2500.9,5.65832125]
[1730048941952,1.55346127,2501.0,2500.9,2.45052125]
[1730048942149,1.55346127,2501.0,2500.9,5.65832125]
[1730048943852,1.55346127,2501.0,2500.9,12.71754852]
[1730048944047,1.55346127,2501.0,2500.9,10.61632625]
[1730048945648,1.15320127,2501.0,2500.9,10.61632625]
[1730048946045,1.15320127,2501.0,2500.9,13.23911539]
[1730048948057,1.15320127,2501.0,2500.9,4.60771012]
[1730048949256,1.15320127,2501.0,2500.9,13.2427984]
[1730048949954,1.15320127,2501.1,2500.9,18.39439967]
[1730048950165,1.57010127,2501.3,2501.2,0.40022]
[1730048950351,1.57010127,2501.3,2501.2,5.6108088]
[1730048950749,0.4169,2501.3,2501.2,7.71148295]
[1730048950953,1.57010127,2501.3,2501.2,8.15772567]
[1730048952054,1.57010127,2501.3,2501.2,5.10443332]
[1730048952249,1.57010127,2501.3,2501.2,4.05442]
[1730048952250,1.15320127,2501.3,2501.2,4.05442]
[1730048957653,1.55341127,2501.3,2501.2,4.05442]
[1730048958957,1.55341127,2501.3,2501.2,7.63199591]
[1730048965662,1.55341127,2501.3,2501.2,4.42419591]
[1730048965868,1.55341127,2501.3,2501.2,4.42419054]
[1730048966263,1.55341127,2501.3,2501.2,7.63199054]
[1730048966967,1.55341127,2501.3,2501.2,4.05442]
[1730048969663,1.55341127,2501.3,2501.2,3.2078]
[1730048970471,1.99951127,2501.3,2501.2,3.2078]
[1730048973070,1.99951127,2501.3,2501.2,3.60802]
[1730048973272,1.99951127,2501.3,2501.2,3.2078]
[1730048973972,1.99951127,2501.3,2501.2,7.18571942]
[1730048974173,1.99951127,2501.3,2501.2,6.78549942]
[1730048974576,1.99951127,2501.3,2501.2,7.18571942]
[1730048975071,1.99951127,2501.3,2501.2,6.78549942]
[1730048975399,1.99951127,2501.3,2501.2,5.21052273]
[1730048975580,1.99951127,2501.3,2501.2,6.25932979]
[1730048975805,5.99791127,2501.3,2501.2,6.25932979]
[1730048976074,0.40022,2501.2,2501.1,1.04880706]
[1730048976272,2.40952127,2501.2,2501.1,1.04880706]
[1730048976473,2.40952127,2501.2,2501.1,1.44904706]
[1730048976775,2.40952127,2501.2,2501.1,1.04880706]
[1730048978166,2.40952127,2501.2,2501.1,1.44904706]
[1730048979876,3.23752127,2501.2,2501.1,1.44904706]
[1730048983079,3.23752127,2501.2,2501.1,4.65684706]
[1730048984171,3.23752127,2501.2,2501.1,1.44904706]
[1730048984374,3.23752127,2501.2,2501.1,4.65684706]
[1730048989078,3.23752127,2501.2,2501.1,0.40024]
[1730048989277,3.23752127,2501.2,2501.1,3.60804]
[1730048990405,3.23752127,2501.2,2501.1,0.40024]
[1730048991282,3.23752127,2501.2,2501.1,3.60804]
[1730048993977,3.23752127,2501.2,2501.1,0.40024]
[1730048994378,3.23752127,2501.2,2501.1,3.60804]
[1730048995691,3.23752127,2501.2,2501.1,0.40024]
[1730048996584,3.23752127,2501.2,2501.1,3.60804]
[1730048997084,3.23752127,2501.2,2501.1,0.40024]
[1730048997280,3.23752127,2501.2,2501.1,4.65684706]
[1730048998491,3.23752127,2501.2,2501.1,1.44904706]
[1730048998689,3.23752127,2501.2,2501.1,4.65684706]
[1730048998981,3.23752127,2501.2,2501.1,1.44904706]
[1730048999784,3.23752127,2501.2,2501.1,4.65684706]
[1730049003998,3.23752127,2501.2,2501.1,1.44904706]
[1730049004193,3.23752127,2501.2,2501.1,3.60804]
[1730049004403,2.81342127,2501.2,2501.1,3.60804]
[1730049004889,2.81342127,2501.2,2501.1,0.40024]
[1730049005084,2.81342127,2501.2,2501.1,3.60804]
[1730049005288,0.4002,2501.5,2501.4,0.40017]
[1730049005496,2.38140127,2501.5,2501.4,0.40017]
[1730049007589,1.98120127,2501.5,2501.4,3.60797]
[1730049009392,1.98120127,2501.5,2501.4,0.40017]
[1730049009588,1.98120127,2501.5,2501.4,3.60797]
[1730049009788,2.38138127,2501.5,2501.4,3.60797]
[1730049012896,2.38138127,2501.5,2501.4,4.65570592]
[1730049013396,2.38138127,2501.5,2501.4,3.60797]
[1730049014996,1.55338127,2501.5,2501.4,3.60797]
[1730049015199,2.38038127,2501.5,2501.4,3.60797]
[1730049017194,2.38038127,2501.5,2501.4,0.40017]
[1730049017595,2.38038127,2501.5,2501.4,3.60797]
[1730049018593,2.38038127,2501.5,2501.4,0.40017]
[1730049018893,2.38038127,2501.5,2501.4,3.60797]
[1730049019987,2.38038127,2501.5,2501.4,0.40017]
[1730049020509,2.38038127,2501.5,2501.4,3.60797]
[1730049021088,2.38038127,2501.5,2501.4,0.40017]
[1730049021289,2.38038127,2501.5,2501.4,3.60797]
[1730049030554,2.38038127,2501.5,2501.4,0.40017]
[1730049031002,2.38038127,2501.5,2501.4,3.60797]
[1730049032898,2.38038127,2501.5,2501.4,0.40017]
[1730049033106,2.38038127,2501.5,2501.4,3.60797]
[1730049033498,2.38038127,2501.5,2501.4,0.40017]
[1730049033702,2.38038127,2501.5,2501.4,3.60797]
[1730049034199,2.38038127,2501.5,2501.4,0.40017]
[1730049034401,2.38038127,2501.5,2501.4,1.44790592]
[1730049034597,2.38038127,2501.5,2501.4,4.65570592]
[1730049034798,2.38038127,2501.5,2501.4,3.60797]
[1730049035401,2.38038127,2501.5,2501.4,0.40017]
[1730049035805,2.38038127,2501.5,2501.4,3.60797]
[1730049036709,1.98020127,2501.5,2501.1,3.2078]
[1730049036900,1.55345127,2501.2,2501.1,4.03882]
[1730049038402,0.40025,2501.2,2501.1,4.03882]
[1730049038600,1.55342127,2501.3,2501.2,0.40021]
[1730049038801,1.55342127,2501.3,2501.2,2.31924886]
[1730049039003,1.55342127,2501.3,2501.2,4.32186218]
[1730049040398,1.55342127,2501.3,2501.2,3.27372332]
[1730049041500,1.55342127,2501.3,2501.2,4.84597605]
[1730049041900,1.55342127,2501.3,2501.2,3.27372332]
[1730049042304,1.55342127,2501.3,2501.2,4.84597605]
[1730049042504,1.55342127,2501.3,2501.2,1.27111]
[1730049043299,1.55342127,2501.3,2501.2,4.47891]
[1730049045109,1.55342127,2501.3,2501.2,1.27111]
[1730049045708,1.55342127,2501.3,2501.2,4.47891]
[1730049046811,1.55342127,2501.3,2501.2,1.27111]
[1730049047022,1.55342127,2501.3,2501.2,4.47891]
[1730049049514,1.55342127,2501.3,2501.2,8.0538025]
[1730049050620,1.55342127,2501.3,2501.2,4.8460025]
[1730049050807,1.55342127,2501.3,2501.2,8.0538025]
[1730049051301,1.55342127,2501.3,2501.2,4.8460025]
[1730049051502,1.55342127,2501.3,2501.2,8.0538025]
[1730049053317,1.55342127,2501.3,2501.2,4.8460025]
[1730049053515,1.55342127,2501.3,2501.2,8.0538025]
[1730049053815,1.55342127,2501.3,2501.2,8.05381227]
[1730049054920,1.55342127,2501.3,2501.2,4.84601227]
[1730049055219,1.55342127,2501.3,2501.2,8.05381227]
[1730049056019,1.55342127,2501.3,2501.2,4.84601227]
[1730049056315,1.55342127,2501.3,2501.2,8.05381227]
[1730049056509,1.55342127,2501.3,2501.2,4.47891]
[1730049058032,1.55342127,2501.3,2501.2,3.60801]
[1730049059927,1.55342127,2501.3,2501.2,0.40021]
[1730049060315,1.55342127,2501.3,2501.2,3.60801]
[1730049064530,1.55342127,2501.3,2501.2,7.18295882]
[1730049065530,1.99892127,2501.3,2501.2,7.18295882]
[1730049067637,1.99892127,2501.3,2501.2,3.97515882]
[1730049067833,1.99892127,2501.3,2501.2,7.18295882]
[1730049069337,1.99892127,2501.3,2501.2,3.97515882]
[1730049069738,1.99892127,2501.3,2501.2,7.18295882]
[1730049070033,1.99892127,2501.3,2501.2,6.78274882]
[1730049070333,1.99892127,2501.3,2501.2,4.2560992]
[1730049070334,5.99732127,2501.3,2501.2,4.2560992]
[1730049070643,5.99732127,2501.3,2501.0,1.0482992]
[1730049070644,0.40024,2501.1,2501.0,1.0482992]
[1730049070847,0.40026,2501.0,2500.9,2.04793932]
[1730049071132,3.21416127,2501.0,2500.9,2.04793932]
[1730049071533,3.21416127,2501.0,2500.9,0.99964012]
[1730049071734,4.36736254,2501.0,2500.9,0.99964012]
[1730049074459,8.36576254,2501.0,2500.9,0.99964012]
[1730049079357,7.21256127,2501.0,2500.9,0.99964012]
[1730049079749,3.21416127,2501.0,2500.9,0.99964012]
[1730049079955,8.36576254,2501.0,2500.9,0.99964012]
[1730049080251,3.21416127,2501.0,2500.9,0.99964012]
[1730049080450,7.21256127,2501.0,2500.9,0.99964012]
[1730049080849,3.21416127,2501.0,2500.9,0.99964012]
[1730049087561,8.36576254,2501.0,2500.9,0.99964012]
[1730049088268,4.36736254,2501.0,2500.9,0.99964012]
[1730049098462,8.36576254,2501.0,2500.9,0.99964012]
[1730049103974,0.40034,2500.5,2500.4,3.2078]
[1730049104176,13.03775192,2500.5,2500.4,3.2078]
[1730049104765,18.19015319,2500.5,2500.4,3.2078]
[1730049106079,17.78981319,2500.5,2500.0,4.01961]
[1730049106278,0.40038,2500.2,2500.1,0.4123]
[1730049106577,1.55358127,2500.2,2500.1,0.8127]
[1730049108170,0.827,2500.2,2500.1,4.4123]
[1730049108374,1.98020127,2500.2,2500.1,4.8127]
[1730049108566,4.089,2501.7,2500.2,4.0]
[1730049108769,0.40033,2500.6,2500.5,0.40032]
[1730049108971,3.2078,2501.1,2500.6,1.00081]
[1730049109177,0.827,2501.2,2500.7,3.2078]
[1730049109378,0.827,2501.2,2500.8,0.40027]
[1730049109379,0.40028,2500.9,2500.8,0.40027]
[1730049109782,1.55348127,2500.9,2500.8,0.40027]
[1730049110577,2.38048127,2500.9,2500.8,0.40027]
[1730049111881,2.38048127,2500.9,2500.8,0.82777]
[1730049114880,1.15320127,2500.9,2500.8,0.82777]
[1730049115683,1.55347127,2500.9,2500.8,0.82777]
[1730049118085,1.55347127,2500.9,2500.8,0.4275]
[1730049118784,1.55347127,2500.9,2500.8,0.82779]
[1730049124979,1.55347127,2500.9,2500.8,4.03559]
[1730049128386,1.55347127,2500.9,2500.8,0.82779]
[1730049128594,1.55347127,2500.9,2500.8,4.03559]
[1730049130590,1.15320127,2500.9,2500.8,4.03559]
[1730049131086,0.65320127,2500.9,2500.8,4.03559]
[1730049131290,0.15320127,2500.9,2500.8,4.03559]
[1730049131692,0.40027127,2500.9,2500.8,4.03559]
[1730049131902,0.40024,2501.2,2501.1,0.40022]
[1730049132094,0.4456,2501.3,2501.0,0.40025]
[1730049132095,1.15320127,2501.1,2501.0,0.40025]
[1730049132394,1.15320127,2501.1,2501.0,1.44789853]
[1730049132595,1.15320127,2501.1,2501.0,0.40025]
[1730049133592,1.15320127,2501.1,2501.0,1.44789853]
[1730049133793,1.15320127,2501.1,2501.0,4.39865]
[1730049133986,1.15320127,2501.1,2501.0,5.44629853]
[1730049134488,1.15320127,2501.1,2501.0,4.39865]
[1730049135685,1.15320127,2501.1,2501.0,5.55185127]
[1730049136500,1.15320127,2501.1,2501.0,4.39865]
[1730049136886,1.00046,2501.5,2501.0,4.39865]
[1730049136887,0.826,2501.5,2501.1,1.00057]
[1730049137194,0.826,2501.5,2501.4,0.40019]
[1730049137597,0.826,2501.5,2501.4,1.25499]
[1730049137794,0.40017,2501.5,2501.4,1.25499]
[1730049138293,1.15320127,2501.5,2501.4,1.25499]
[1730049139905,1.15320127,2501.5,2501.4,2.40819127]
[1730049141694,1.15320127,2501.5,2501.4,5.61599127]
[1730049141893,4.089,2502.3,2501.4,9.21340127]
[1730049142100,0.40011,2502.0,2501.9,0.4001]
[1730049142404,1.55329127,2502.1,2502.0,0.40008]
[1730049142603,1.55328127,2502.1,2502.0,0.40008]
[1730049142899,1.15320127,2502.1,2502.0,0.40008]
[1730049143500,2.39430127,2502.2,2502.1,0.40008]
[1730049143801,2.39430127,2502.2,2502.1,4.76108127]
[1730049144309,1.56830127,2502.2,2502.1,4.76108127]
[1730049146496,1.96836127,2502.2,2502.1,3.60788]
[1730049146696,1.96836127,2502.2,2502.1,3.2078]
[1730049146999,1.56830127,2502.2,2502.1,3.60788]
[1730049147306,1.96836127,2502.2,2502.1,3.2078]
[1730049147694,1.96836127,2502.2,2502.1,3.60788]
[1730049147893,1.96836127,2502.2,2502.1,3.2078]
[1730049148687,1.96836127,2502.2,2502.1,3.60788]
[1730049149501,1.96836127,2502.2,2502.1,3.2078]
[1730049155106,0.40011,2501.9,2501.8,3.60791]
[1730049155300,1.55331127,2501.9,2501.8,3.60791]
[1730049157401,1.55331127,2501.9,2501.8,4.76111127]
[1730049158499,0.826,2502.0,2501.8,8.35780127]
[1730049158702,0.4151,2502.2,2502.1,0.40008]
[1730049158703,2.79437127,2502.2,2502.1,0.40008]
[1730049158901,2.79437127,2502.2,2502.1,1.55328127]
[1730049159604,2.79437127,2502.2,2502.1,2.00138127]
[1730049159803,2.39430127,2502.2,2502.1,2.00138127]
[1730049160301,2.79436127,2502.2,2502.1,2.00138127]
[1730049160603,2.79436127,2502.2,2502.1,5.20918127]
[1730049163605,2.39430127,2502.2,2502.1,5.20918127]
[1730049164414,2.79436127,2502.2,2502.1,5.20918127]
[1730049164704,2.79436127,2502.2,2502.1,2.00138127]
[1730049164907,2.79436127,2502.2,2502.1,5.20918127]